Cogmind - Beta 13 @@@ ROGUE MODE // 2024.05.05 @ 21:25:30 Player: BionicBot Result: Self-destructed Performance ------------- Evolutions (3) 1500 Regions Visited (8) 1600 Robots Destroyed (85) 425 Value Destroyed (3037) 3037 Prototype IDs (17) 340 Alien Tech Used (0) 0 Bonus (872) 872 TOTAL SCORE: 7774 Bonus ------- High Alert Combat Kills 132 Follower Combat Kills 40 Entered Garrisons 200 Used RIF Installer 500 Cogmind --------- Core Integrity 270/700 Matter 290/300 Energy 100/100 System Corruption 9% Temperature Cool (0) Movement Core (200) Ox3 Location -7/Factory Parts ------- > --- POWER (1) -------- (None) > --- PROPULSION (5) --- Improved VTOL Module Improved VTOL Module > --- UTILITY (5) ------ Medium Storage Unit Improved Signal Interpreter Relay Coupler [Hunter] (10) > --- WEAPON (2) ------- (None) > --- INVENTORY (10) --- Light Nuclear Core Aluminum Leg Sensor Array Relay Coupler [Brawler] (39) Relay Coupler [Sentry] (24) Relay Coupler [Heavy] (17) Mini Drone Bay (3/3) Heavy Rocket Launcher Remote Datajack Power Sword Peak State ------------ > --- POWER ------------ Cooled Ion Engine > --- PROPULSION ------- Airjet Gravmag System Improved VTOL Module Improved VTOL Module > --- UTILITY ---------- Medium Storage Unit Improved Signal Interpreter Relay Coupler [Grunt] Relay Coupler [Sentry] Relay Coupler [Hunter] > --- WEAPON ----------- Improved Datajack Power Sword > --- INVENTORY -------- Light Nuclear Core Sensor Array Relay Coupler [Brawler] Relay Coupler [Sentry] Relay Coupler [Heavy] Mini Drone Bay Heavy Rocket Launcher Remote Datajack Power Sword [Rating: 45] Favorites ----------- Power Cooled Ion Engine Engine Cooled Ion Engine Power Core Light Nuclear Core Propulsion Improved VTOL Module Leg Aluminum Leg Hover Unit Airjet Flight Unit Improved VTOL Module Utility Medium Storage Unit Device Sensor Array Storage Medium Storage Unit Processor Improved Signal Interpreter Hackware Hacking Suite Protection Hardened Light Armor Plating Weapon Power Sword Energy Gun Improved Medium Laser Ballistic Gun Assault Rifle Launcher Grenade Launcher Special Weapon Remote Datajack Slashing Weapon Power Sword Special Melee Weapon Datajack Build | -11 -10 -9 -8 -8 -8 -7 -7 -7 ------- Run | Yrd Mat Mat Mat Gar Mat Fac Was Fac Slots Evolved 6 | . . 2 2 . . 2 . . Power . | . . . . . . . . . Propulsion 3 | . . 1 2 . . . . . Utility 3 | . . 1 . . . 2 . . Weapon . | . . . . . . . . . Parts Attached 87 | 7 4 29 20 2 4 . 1 20 Power 7 | 1 . 3 1 1 . . . 1 Engine 6 | 1 . 3 1 . . . . 1 Core 1 | . . . . 1 . . . . Reactor . | . . . . . . . . . Propulsion 20 | 2 . 9 3 . . . . 6 Treads . | . . . . . . . . . Leg 10 | 2 . 6 . . . . . 2 Wheel . | . . . . . . . . . Hover 4 | . . . . . . . . 4 Flight 6 | . . 3 3 . . . . . Utility 17 | 2 1 3 4 . 1 . 1 5 Device 7 | 1 1 1 3 . . . 1 . Storage 2 | 1 . 1 . . . . . . Processor 1 | . . . 1 . . . . . Hackware 6 | . . . . . 1 . . 5 Protection 1 | . . 1 . . . . . . Artifact . | . . . . . . . . . Weapon 43 | 2 3 14 12 1 3 . . 8 Energy Gun 10 | . . 9 1 . . . . . Energy Cannon . | . . . . . . . . . Ballistic Gun 5 | 2 . 1 2 . . . . . Ballistic Cannon . | . . . . . . . . . Launcher 14 | . 2 3 7 . 1 . . 1 Special Weapon 5 | . 1 1 . . . . . 3 Impact Weapon . | . . . . . . . . . Slashing Weapon 5 | . . . 2 1 . . . 2 Piercing Weapon . | . . . . . . . . . Special Melee Weapon 4 | . . . . . 2 . . 2 Unidentified Prototypes 4 | . . 3 1 . . . . . Parts Lost 19 | . . 4 . . . . . 15 Power 2 | . . 1 . . . . . 1 Propulsion 7 | . . . . . . . . 7 Utility 4 | . . . . . . . . 4 Weapon 6 | . . 3 . . . . . 3 Highest Loss Streak 5 | . . 2 . . . . . 5 To Critical Strikes . | . . . . . . . . . Average Slot Usage (%) 91 | . 100 95 91 90 95 84 90 88 Engine 7 | . 14 11 9 . . . . 6 Leg 8 | . 28 27 . . . . . . Flight 21 | . . 2 41 45 45 38 38 27 Device 8 | . 14 15 9 9 1 . 6 3 Storage 8 | . 14 11 9 9 9 7 7 7 Processor 4 | . . . 7 9 9 7 7 7 Hackware 9 | . . . . . 7 7 7 17 Protection 1 | . . 6 . . . . . . Energy Gun 4 | . . 18 3 . . . . . Ballistic Gun 1 | . 4 1 3 . . . . . Launcher 2 | . 21 . 2 1 4 7 7 . Special Weapon 1 | . 2 . . . . . . 3 Slashing Weapon 4 | . . . 3 8 . . . 6 Special Melee Weapon 1 | . . . . . 8 7 7 2 Naked Turns . | . . . . . . . . . Heaviest Build 29 | 14 17 28 28 23 21 20 21 29 Greatest Support 30 | 20 20 30 24 24 24 24 24 24 Greatest Overweight (x) 7 | 2 . 5 1 . . . . 7 Average Overweight (x) . | . . . . . . . . . Largest Inventory Capacity 10 | 8 8 10 10 10 10 10 10 10 Average Capacity 9 | 7 8 9 10 10 10 10 10 10 Most Carried 10 | 4 8 10 10 10 10 9 9 10 Average Carried 8 | 1 7 9 9 9 9 9 8 9 Final Capacity 10 | 8 8 10 10 10 10 10 10 10 Final Carried 10 | 4 8 10 10 10 9 9 8 10 Class Distribution -------------------- 31% | Bothacker-Mutant 22% | Mutant 21% | Scavenger-Mutant 16% | Bothacker-Sprinter 6% | Scavenger-Sprinter 3% | Sprinter Dominant Class ---------------- Mutant | -10/Materials Scavenger-Mutant | -9/Materials Scavenger-Sprinter | -8/Materials Sprinter | -8/Garrison Bothacker-Sprinter | -8/Materials Bothacker-Sprinter | -7/Factory Bothacker-Sprinter | -7/Waste Bothacker-Mutant | -7/Factory Resources | -11 -10 -9 -8 -8 -8 -7 -7 -7 ----------- Run | Yrd Mat Mat Mat Gar Mat Fac Was Fac Matter Collected 1934 | 342 69 632 310 . 51 . 306 224 Remotely . | . . . . . . . . . Salvage Created 2178 | 130 184 1037 386 . 125 . . 316 Parts 161 | 11 18 58 44 . 8 . . 22 Haulers Intercepted 8 | . 1 4 3 . . . . . Recyclers Shooed 2 | . . 2 . . . . . . Parts Field Recycled . | . . . . . . . . . Retrieved Matter . | . . . . . . . . . Parts Self-Destructed . | . . . . . . . . . Prevented . | . . . . . . . . . Kills | -11 -10 -9 -8 -8 -8 -7 -7 -7 ------- Run | Yrd Mat Mat Mat Gar Mat Fac Was Fac Combat Hostiles Destroyed 50 | . 7 20 10 . 5 . . 8 Melee 6 | . . . 1 . . . . 5 Guns 9 | . . 9 . . . . . . Cannons 1 | . . 1 . . . . . . AOE 33 | . 7 9 9 . 5 . . 3 Classes Destroyed 11 | 2 4 3 1 . . . . 1 Worker 4 | . . 1 1 . 1 . . 1 Builder 2 | . . . 2 . . . . . Tunneler 5 | 4 . . 1 . . . . . Hauler 8 | . 1 4 3 . . . . . Recycler 2 | 1 . 1 . . . . . . Operator 2 | . . 1 . . 1 . . . Watcher 12 | . 2 4 4 . 1 . . 1 Swarmer 18 | . 3 3 9 . . . . 3 Grunt 21 | . 4 11 . . 4 . . 2 Sentry 8 | . . 6 1 . 1 . . . Programmer 3 | . . . . . . . . 3 Best Kill Streak 9 | 2 4 8 9 . 6 . . 3 Combat Bots Only 8 | . 3 8 3 . 4 . . 3 Max Kills in Single Turn 5 | 1 2 3 5 . 2 . . 2 Gunslinging . | . . . . . . . . . Exploded 3 | . 2 3 3 . 1 . . 2 Melee 1 | . . . 1 . . . . 1 Uniques/NPCs Destroyed . | . . . . . . . . . Combat | -11 -10 -9 -8 -8 -8 -7 -7 -7 -------- Run | Yrd Mat Mat Mat Gar Mat Fac Was Fac Hostile Shots Fired 231 | . 15 87 14 . 15 . . 100 Missed 75 | . 5 29 4 . 11 . . 26 Damage Taken 2497 | . 160 885 127 . 117 . . 1208 Core 594 | . 13 83 24 . 44 . . 430 Absorbed by Shields . | . . . . . . . . . Core Remaining (%) 90 | 100 94 79 . . 87 . . . Volleys Fired 153 | 18 13 69 24 . 19 . . 10 Largest 2 | 2 2 2 2 . 1 . . 1 Hottest 156 | 40 120 156 88 . 33 . . 39 Shots Fired 259 | 36 25 134 35 . 19 . . 10 Gun 182 | 36 2 118 26 . . . . . Cannon . | . . . . . . . . . Launcher 65 | . 20 14 9 . 19 . . 3 Special 12 | . 3 2 . . . . . 7 Kinetic 57 | 36 2 2 17 . . . . . Thermal 130 | . 3 118 9 . . . . . Explosive 65 | . 20 14 9 . 19 . . 3 Electromagnetic . | . . . . . . . . . Robot Hit Streak 14 | 6 7 14 5 . 6 . . 5 Robot Miss Streak 4 | 3 2 4 4 . 2 . . 2 Penetration Max . | . . . . . . . . . Secondary Targets . | . . . . . . . . . Shots Hit Robots 177 | 22 11 84 20 . 15 . . 25 Core Hits 121 | 5 19 41 27 . 18 . . 11 Critical Kills . | . . . . . . . . . Critical Parts Destroyed . | . . . . . . . . . Critical Strikes 4 | . . 4 . . . . . . Burn 4 | . . 4 . . . . . . Melee Attacks 50 | . . . 9 11 3 . . 27 Impact . | . . . . . . . . . Slashing 43 | . . . 9 11 2 . . 21 Piercing . | . . . . . . . . . Sneak Attacks 8 | . . . 2 . 1 . . 5 Combat Hostiles . | . . . . . . . . . Follow-up Attacks . | . . . . . . . . . Damage Inflicted 6209 | 230 941 2029 1186 . 866 . . 957 Guns 1803 | 230 26 1348 199 . . . . . Cannons . | . . . . . . . . . Explosions 3380 | . 915 657 679 . 774 . . 355 Melee 1002 | . . . 308 . 92 . . 602 Ramming . | . . . . . . . . . Kinetic 413 | 230 26 26 131 . . . . . Thermal 1414 | . . 1346 68 . . . . . Explosive 3380 | . 915 657 679 . 774 . . 355 Electromagnetic . | . . . . . . . . . Impact . | . . . . . . . . . Slashing 1002 | . . . 308 . 92 . . 602 Piercing . | . . . . . . . . . Highest Corruption 9 | . . . . . . . . 9 Average Corruption 3 | . . . . . . . . 3 Corruption Purged . | . . . . . . . . . Corruption Blocked . | . . . . . . . . . Effects 16 | . . . . . . . . 16 Message Errors 3 | . . . . . . . . 3 Matter Fused 5 | . . . . . . . . 5 Heat Flow Errors 2 | . . . . . . . . 2 Energy Discharges 1 | . . . . . . . . 1 Parts Rejected 1 | . . . . . . . . 1 Data Loss (minor) 4 | . . . . . . . . 4 Overload Shots . | . . . . . . . . . Overflow Damage 256 | . 31 17 52 . 62 . . 94 Projectiles . | . . . . . . . . . Explosions 60 | . 31 17 12 . . . . . Melee 196 | . . . 40 . 62 . . 94 Knockbacks . | . . . . . . . . . Impact . | . . . . . . . . . Kinetic . | . . . . . . . . . Secondary . | . . . . . . . . . Self-Inflicted Damage 142 | . 67 . 18 . 57 . . . Shots 7 | . 4 . 1 . 2 . . . Rammed . | . . . . . . . . . Targets Rammed . | . . . . . . . . . Kicked . | . . . . . . . . . Crushed . | . . . . . . . . . Highest Temperature 399 | . 20 399 123 114 49 3 3 93 Average Temperature 68 | . 10 131 30 33 13 2 2 23 Received Heat Transfer 774 | . 33 372 27 . 36 . . 306 Effects 7 | . . 7 . . . . . . Energy Bleed 2 | . . 2 . . . . . . Interference 4 | . . 4 . . . . . . Matter Decay 1 | . . 1 . . . . . . Siege Activations . | . . . . . . . . . Robots Corrupted . | . . . . . . . . . Combat Hostiles . | . . . . . . . . . Parts Fried . | . . . . . . . . . Impact Corruptions . | . . . . . . . . . Robots Melted 2 | . . 2 . . . . . . Combat Hostiles 1 | . . 1 . . . . . . Parts Melted 10 | . . 10 . . . . . . Heat Transferred 3380 | . . 3232 148 . . . . . Parts Sabotaged . | . . . . . . . . . Parts Stolen . | . . . . . . . . . Parts Stripped . | . . . . . . . . . Power Chain Reactions . | . . . . . . . . . Alert | -11 -10 -9 -8 -8 -8 -7 -7 -7 ------- Run | Yrd Mat Mat Mat Gar Mat Fac Was Fac Peak Influence 771 | 25 376 492 661 771 644 307 54 253 Initial 375 | . 16 74 115 356 375 292 54 37 Average 196 | 9 191 282 358 586 471 256 54 95 Maximum Alert Level 3 | . 1 2 2 3 2 1 . 1 Low Security (%) 63 | 100 53 21 33 . . 27 100 96 Level 1 24 | . 46 71 9 5 44 72 . 3 Level 2 11 | . . 7 56 84 55 . . . Level 3 . | . . . . 9 . . . . Level 4 . | . . . . . . . . . Level 5 . | . . . . . . . . . High Security . | . . . . . . . . . Max Security . | . . . . . . . . . Squads Dispatched 14 | . 1 3 . . 2 . . 8 Investigation 3 | . 1 1 . . . . . 1 Extermination 3 | . . . . . . . . 3 Reinforcement 8 | . . 2 . . 2 . . 4 Assault . | . . . . . . . . . Garrison . | . . . . . . . . . Intercept . | . . . . . . . . . Searches Triggered . | . . . . . . . . . Construction Impeded 2 | . . 1 . . 1 . . . Haulers Reinforced . | . . . . . . . . . Active Scanning Responses . | . . . . . . . . . Cargo Convoy Interrupts . | . . . . . . . . . Stealth | -11 -10 -9 -8 -8 -8 -7 -7 -7 --------- Run | Yrd Mat Mat Mat Gar Mat Fac Was Fac Distress Signals 5 | . . 3 . . . . . 2 Communications Jammed . | . . . . . . . . . Distress Signals . | . . . . . . . . . Times Spotted 108 | . 10 25 21 . 8 1 . 43 Peak Tracking Total 9 | . 3 6 8 . 3 1 . 9 Tactical Retreats 15 | . 1 2 3 . . . . 9 Traps | -11 -10 -9 -8 -8 -8 -7 -7 -7 ------- Run | Yrd Mat Mat Mat Gar Mat Fac Was Fac Traps Triggered 6 | . 1 2 . . . 1 . 2 Indirectly . | . . . . . . . . . Trap Hack Attempts . | . . . . . . . . . Triggered . | . . . . . . . . . Disarmed . | . . . . . . . . . Reprogrammed . | . . . . . . . . . Reused . | . . . . . . . . . Traps Extracted . | . . . . . . . . . Installed . | . . . . . . . . . Triggered . | . . . . . . . . . Machines | -11 -10 -9 -8 -8 -8 -7 -7 -7 ---------- Run | Yrd Mat Mat Mat Gar Mat Fac Was Fac Machines Disabled 13 | . 2 3 3 5 . . . . Max in Single Turn 1 | . 1 1 1 1 . . . . Garrison Access 1 | . . . . . . . . 1 Garrison Relay 5 | . . . . 5 . . . . Machines Repaired . | . . . . . . . . . Machines Dismantled . | . . . . . . . . . Machines Sabotaged . | . . . . . . . . . Overloaded Fab Kills . | . . . . . . . . . Hacking | -11 -10 -9 -8 -8 -8 -7 -7 -7 --------- Run | Yrd Mat Mat Mat Gar Mat Fac Was Fac Machines Accessed 32 | . 4 8 6 3 2 2 . 7 Terminals 26 | . 4 8 3 3 2 2 . 4 Fabricators 1 | . . . . . . . . 1 Repair Stations 1 | . . . . . . . . 1 Recycling Units . | . . . . . . . . . Scanalyzers 2 | . . . 2 . . . . . Garrison Access 2 | . . . 1 . . . . 1 Total Hacks 84 | . 13 18 27 3 5 5 . 13 Successful 39 | . 3 7 17 3 2 2 . 5 Failed 44 | . 10 10 10 . 3 3 . 8 Catastrophic 12 | . 5 2 . . 1 . . 4 Database Lockouts 1 | . . 1 . . . . . . Manual 37 | . 6 17 8 . 4 2 . . Terminals 61 | . 13 18 10 3 5 5 . 7 Fabricators 4 | . . . . . . . . 4 Repair Stations 1 | . . . . . . . . 1 Recycling Units . | . . . . . . . . . Scanalyzers 15 | . . . 15 . . . . . Garrison Access 3 | . . . 2 . . . . 1 Terminal Hacks 21 | . 3 7 3 3 2 2 . 1 Record 2 | . . 2 . . . . . . Part Schematic 1 | . . . . . . 1 . . Robot Analysis 3 | . . 1 2 . . . . . Prototype ID Bank 7 | . 2 2 1 . 1 . . 1 Open Door 1 | . . . . 1 . . . . Level Access Points 1 | . . . . . 1 . . . Branch Access Points 1 | . . 1 . . . . . . Emergency Access Points 1 | . . . . 1 . . . . Unreport Threat 2 | . . 1 . . . 1 . . Locate Traps 1 | . 1 . . . . . . . Garrison Registry 1 | . . . . 1 . . . . Fabricator Hacks 3 | . . . . . . . . 3 Load Schematic 1 | . . . . . . . . 1 Build 2 | . . . . . . . . 2 Repair Station Hacks . | . . . . . . . . . Recycling Unit Hacks . | . . . . . . . . . Scanalyzer 13 | . . . 13 . . . . . Insert Component 7 | . . . 7 . . . . . Analyze 6 | . . . 6 . . . . . Garrison Access Hacks 2 | . . . 1 . . . . 1 Unlock Access 1 | . . . 1 . . . . . Seal Access 1 | . . . . . . . . 1 Unauthorized Hacks . | . . . . . . . . . Terminals . | . . . . . . . . . Fabricators . | . . . . . . . . . Repair Stations . | . . . . . . . . . Recycling Units . | . . . . . . . . . Scanalyzers . | . . . . . . . . . Garrison Access . | . . . . . . . . . Data Cores Recovered 1 | . . . . . 1 . . . Used 1 | . . . . . 1 . . . Hacking Detections 26 | . 4 8 5 . 2 1 . 6 Full Trace Events 1 | . . . . . . . . 1 Feedback Events . | . . . . . . . . . Feedback Blocked . | . . . . . . . . . Robot Schematics Acquired . | . . . . . . . . . Robots Built . | . . . . . . . . . Authchips . | . . . . . . . . . Time . | . . . . . . . . . Total Robot Build Rating . | . . . . . . . . . Part Schematics Acquired 7 | . . . 6 . . 1 . . Parts Built 3 | . . . . . . . . 3 Authchips . | . . . . . . . . . Time 100 | . . . . . . . . 100 Total Part Build Rating 16 | . . . . . . . . 16 Parts Repaired . | . . . . . . . . . Time . | . . . . . . . . . Parts Recycled . | . . . . . . . . . Recycled Matter . | . . . . . . . . . Retrieved Matter . | . . . . . . . . . Retrieved Components . | . . . . . . . . . Parts Scanalyzed 6 | . . . 6 . . . . . Part Schematics Acquired 6 | . . . 6 . . . . . Parts Damaged . | . . . . . . . . . Bothacking | -11 -10 -9 -8 -8 -8 -7 -7 -7 ------------ Run | Yrd Mat Mat Mat Gar Mat Fac Was Fac Used RIF Installer 1 | . . . . 1 . . . . Robots Hacked 8 | . . . . . . . . 8 Non-combat 5 | . . . . . . . . 5 Combat 3 | . . . . . . . . 3 Robot Hacks Applied 9 | . . . . . . . . 9 parse_system 1 | . . . . . . . . 1 drop_inventory 1 | . . . . . . . . 1 link_fov 1 | . . . . . . . . 1 overload_power 2 | . . . . . . . . 2 formatsys_low 1 | . . . . . . . . 1 formatsys_high 3 | . . . . . . . . 3 Relay Couplers Released 21 | . . . . 19 . . . 2 Machine Destruction 21 | . . . . 19 . . . 2 Attached 5 | . . . . . . . . 5 Fabnet Peak Effective % . | . . . . . . . . . Robots Rewired . | . . . . . . . . . Allies Hacked . | . . . . . . . . . Hacks Repelled . | . . . . . . . . . Allies | -11 -10 -9 -8 -8 -8 -7 -7 -7 -------- Run | Yrd Mat Mat Mat Gar Mat Fac Was Fac Total Allies 4 | . . . . . . . . 4 Largest Group 2 | . . . . . . . . 2 Highest-Rated Group 47 | . . . . . . . . 47 Highest-Rated Ally 26 | . . . . . . . . 26 Total Orders 1 | . . . . . . . . 1 STAY 1 | . . . . . . . . 1 Ally Attacks 17 | . . . . . . . . 17 Total Damage 249 | . . . . . . . . 249 Kills 2 | . . . . . . . . 2 Allies Corrupted . | . . . . . . . . . Allies Melted . | . . . . . . . . . Intel | -11 -10 -9 -8 -8 -8 -7 -7 -7 ------- Run | Yrd Mat Mat Mat Gar Mat Fac Was Fac Robot Analysis Total 3 | . . 1 2 . . . . . Derelict Logs Recovered . | . . . . . . . . . Drone Launches . | . . . . . . . . . Drone Recoveries . | . . . . . . . . . Exploration | -11 -10 -9 -8 -8 -8 -7 -7 -7 ------------- Run | Yrd Mat Mat Mat Gar Mat Fac Was Fac Turns Passed 5504 | 211 483 1216 436 258 145 37 65 2653 Spaces Moved 5905 | 127 354 726 860 842 349 155 267 2225 Core 22 | 16 . . . . . . . 6 Treads . | . . . . . . . . . Legs 1108 | 111 354 637 . . . . . 6 Wheels . | . . . . . . . . . Hover 261 | . . . . . . . . 261 Flight 4514 | . . 89 860 842 349 155 267 1952 Fastest Speed 24 | 50 120 99 24 24 24 24 24 24 Average Speed 70 | 115 120 122 32 24 24 24 24 90 Slowest Speed 400 | 150 120 385 96 24 24 24 24 400 Overloaded Moves . | . . . . . . . . . Propulsion Burnouts . | . . . . . . . . . Robots Hopped 5 | . . . 4 . . . . 1 Cave-ins Triggered . | . . . . . . . . . Exploration Rate (%) 49 | 8 61 69 50 87 26 7 96 39 Regions Visited 8 Branch Regions . Pre-discovered Areas . | . . . . . . . . . Known Exits Taken 2 | . . . 1 . 1 . . . Unknown Exits Taken 3 | 1 1 1 . . . . . . Scrap Searched . | . . . . . . . . . Spaces Dug 23 | . 16 . 4 . . . . 3 Terrain Destroyed 342 | . 114 60 54 . 80 . . 34 Melee 7 | . . . 4 . . . . 3 Projectile 2 | . 1 1 . . . . . . AOE 333 | . 113 59 50 . 80 . . 31 Terrain Rammed . | . . . . . . . . . Walls Destroyed . | . . . . . . . . . Machines Disabled . | . . . . . . . . . Actions | -11 -10 -9 -8 -8 -8 -7 -7 -7 --------- Run | Yrd Mat Mat Mat Gar Mat Fac Was Fac Total 6927 | 156 380 917 961 882 385 155 267 2824 Wait 634 | 1 . 61 30 . 8 . . 534 Move 5888 | 126 353 725 852 840 348 155 266 2223 Hop 4 | . . . 3 . . . . 1 Pick Up 45 | 4 7 10 5 14 1 . . 4 Fast Attach 32 | 7 . 9 5 . 1 . . 10 Attach 16 | . . 4 7 1 2 . 1 1 Detach 12 | . . 3 7 . . . . 2 Swap 40 | . 4 17 8 1 1 . . 9 Drop 54 | . 3 19 11 15 2 . . 4 Fire 153 | 18 13 69 24 . 19 . . 10 Melee 49 | . . . 9 11 3 . . 26 Ram . | . . . . . . . . . Kick . | . . . . . . . . . Crush . | . . . . . . . . . Escape Stasis . | . . . . . . . . . Rewire . | . . . . . . . . . Trap . | . . . . . . . . . Miscellaneous . | . . . . . . . . . Route ------- -11/Scrapyard -10/Materials (discovered 3 exits: *Mat x2 / [*Min]) -9/Materials (discovered 3 exits: *Mat x2 / *Min) -8/Materials (discovered 2 exits: *Fac / Gar) -8/Garrison (discovered 4 exits: *Mat x4) -8/Materials (discovered 3 exits: *Fac x3) -7/Factory -7/Waste -7/Factory History --------- Turn | Location | Event 22 | -11/Scrapyard | Discovered new exit (range 16) 212 | -11/Scrapyard | Entered Materials 263 | -10/Materials | Discovered new exit (range 14) 317 | -10/Materials | Build established: Mutant 441 | -10/Materials | Discovered new exit (range 14) 608 | -10/Materials | Discovered new exit (range 16) 695 | -10/Materials | Entered another Materials area 695 | -9/Materials | Evolved 2 slots: Propulsion x1, Utility x1 1021 | -9/Materials | Destroyed 8 combat bots 1141 | -9/Materials | Central database locked down 1256 | -9/Materials | Discovered new exit (range 9) 1295 | -9/Materials | Identified exit to Mines 1307 | -9/Materials | Build established: Scavenger-Mutant 1587 | -9/Materials | Discovered new exit (range 16) 1911 | -9/Materials | Entered another Materials area 1911 | -8/Materials | Evolved 2 slots: Propulsion x2 2086 | -8/Materials | Discovered new exit (range 16) 2090 | -8/Materials | Identified exit to Factory 2328 | -8/Materials | Build established: Scavenger-Sprinter 2347 | -8/Materials | Identified exit to Garrison 2347 | -8/Materials | Entered Garrison 2347 | -8/Garrison | Discovered recently destroyed garrison 2366 | -8/Garrison | Garrison Relay disabled 2399 | -8/Garrison | Discovered new exit (range 5) 2423 | -8/Garrison | Garrison Relay disabled 2439 | -8/Garrison | Installed Relay Interface Framework 2442 | -8/Garrison | Discovered new exit (range 14) 2445 | -8/Garrison | Identified exit to Materials 2455 | -8/Garrison | Garrison Relay disabled 2499 | -8/Garrison | Discovered exit to Materials (range 53) 2499 | -8/Garrison | Discovered exit to Materials (range 18) 2499 | -8/Garrison | Discovered exit to Materials (range 67) 2499 | -8/Garrison | Discovered exit to Materials (range 80) 2581 | -8/Garrison | Garrison Relay disabled 2590 | -8/Garrison | Garrison Relay disabled 2605 | -8/Garrison | Entered Materials 2750 | -8/Materials | Entered Factory 2750 | -7/Factory | Evolved 2 slots: Utility x2 2787 | -7/Factory | Sucked down chute 2787 | -7/Factory | Entered Waste 2787 | -7/Waste | The area was eerily silent 2816 | -7/Waste | Discovered new exit (range 12) 2819 | -7/Waste | Build established: Bothacker-Sprinter 2852 | -7/Waste | Identified exit to Factory 2852 | -7/Waste | Entered Factory 2988 | -7/Factory | Fabricated Power Sword (x2) 3045 | -7/Factory | Fabricated Mni. Drone Bay? 3721 | -7/Factory | Build established: Scavenger-Mutant 4074 | -7/Factory | Build established: Bothacker-Mutant 5463 | -7/Factory | Lost 4 parts (1p2n1u) 5494 | -7/Factory | Core integrity fell below 50% 5505 | -7/Factory | Self-destructed Last Messages --------------- 05432_ Cld. Ion Engine destroyed. 05433_ G-47 Trooper destroyed. 05439_ System corrupted: Matter fused (-6). 05439_ Acquired Aluminum Leg. 05445_ W-25 Informer destroyed. 05449_ Acquired 33 matter. 05453_ Acquired Imp. Hover Unit. 05484_ System corrupted: Matter fused (-5). 05487_ ALERT: Suspicious intruders detected, dispatching Cutter reinforcements to area. 05493_ Relay Coupler [Grunt] destroyed. 05493_ System corrupted by crushing effect (+5). 05494_ Knocked back. 05498_ O-24 Administrator sends out distress signal. 05498_ O-24 Administrator: "IFF HANDSHAKE FAILED. SECURING TERMINAL." 05501_ Imp. Hover Unit destroyed. 05501_ Power Sword destroyed. 05503_ Imp. Datajack destroyed. 05504_ System corrupted: Aluminum Leg rejected. 05505_ Imp. Hover Unit destroyed. Map ----- +----------------------------------------------------+ | ?????????????????????????# """"" + | | ?????????????????????????# """"" # | | ?????????????????????????# ? # | | ???????????????????????????? ## | | ????????????????????????????##########? | | ????????????????????????????########### | | ??????????????? ?????? | | ??????????????" ?????????????##### | | ??????????????" #????????????????# | | ?????????????? #????????????????# | | ?????????"" ??" #????????????????# | | ????????""" """ ] #????????????????# | | ????????""" """ #????????????????# | | ???????? #????????????????# | | ??????"?""" g #?????????????#### | | ??????" """ /?????????????# | | ??????" """ ** #?????????????# #### | | ??????? ** #?????????????# #??? | | ????????""" ** l #?????????????# #??? | | ??????" """ #?????????????# #??? | | ????""" """ #?????????????# #??? | | ?? #########?????# #??? | | ?????"" """ c #?????# #??? | | ????""" """ c ^ #?????# #??? | | ????""" """c #?????# #??? | | # != @ #?????# #??? | | # = #????## ##?? | | # ###### #?? | | # #?? | | # #####+##+## ### #?? | | ? # #####?? | | ?# + #?????? | | ?# ######### +?????? | | ?? ?????????# #?????? | | ?? ??????????# #?????? | | ??? ???????????# #?????? | | ???????????????# #?????? | | ???????????????+ #?????? | | ???????????????# #?????? | | ???????????????#+################?????? | | ??????????????? ??????????????????????? | | ??????????????????????????????????????? | | ??????????????????????????????????????? | | ??????????????????????????????????????? | | ??????????????????????????????????????? | | ??????????????????????????????????????? | | ??????????????????????????????????????? | | ??????????????????????????????????????? | | ??????????????????????????????????????? | | ??????????????????????????????????????? | +----------------------------------------------------+ Best States ------------- Heat Dissipation 34 Energy Generation 14 Energy Capacity 280 Matter Stores 300 Matter Capacity 300 Sight Range 16 Robot Scan Range 14 Terrain Scan Range 16 Terrain Scan Density 10 Armor Coverage 150 Evasion (%) 65 Offensive Hacking 10 Relay Coupler Types 3 Relay Coupler Value 65 Item Schematics ----------------- Datajack | -8/Materials | Scanalyzed Sensor Array | -8/Materials | Scanalyzed Grenade Launcher | -8/Materials | Scanalyzed ECM Suite | -8/Materials | Scanalyzed Imp. Propulsion Shielding | -8/Materials | Scanalyzed Rocket Launcher | -8/Materials | Scanalyzed Mni. Drone Bay | -7/Factory | Hacked Robot Schematics ------------------ None Fabricated ------------ Power Sword | x2 | -7/Factory | Preloaded Mni. Drone Bay | x1 | -7/Factory Alien Tech Used ----------------- None Achievements -------------- Assimilation Complete Error 47 Challenges ------------ None Game ------ Seed SystemLaserRigger Manual? 0 Play Time 01:50:23 Cumulative 42.3 hours Start 2024.05.05 @ 18:46:01 End 2024.05.05 @ 21:25:30 Sessions 1 Manual Loads 0 Difficulty Rogue Special Mode None Game No. 40 Rogue 40 Adventurer 0 Explorer 0 Win Type - Total 1 Types 1/0/0/0/0/0/0/0/0 Lore% 11 Gallery% 31 Achievement% 27 Wizard Run 0 Options --------- Layout 0 ASCII 0 Keyboard 1 Movement Numpad Keybinds 0 Fullscreen 2 Font 18/SmallcapsGlow Map View 76x50 Zoom Use 0% Tactical HUD 1 Map Filters NONE Filters NONE Steam 1 RUN: 0ef3c823-d5ec-4b78-a937-51b124e75b7b